bitfinex/quotes_SOLUSD_20230113
["timestamp","ask_amount","ask_price","bid_price","bid_amount"]
[1673648077409,49.9691928,18.374,18.373,60.02115897]
[1673648078242,49.9691928,18.374,18.351,20.0]
[1673648078457,40.39180893,18.373,18.351,20.0]
[1673648078674,23.39180893,18.373,18.351,20.0]
[1673648079095,67.17184517,18.379,18.351,20.0]
[1673648079313,3.05531672,18.378,18.351,20.0]
[1673648079627,92.43577618,18.378,18.351,20.0]
[1673648079842,4.02501273,18.376,18.351,20.0]
[1673648080029,21.02501273,18.376,18.351,20.0]
[1673648080249,4.02864221,18.374,18.351,20.0]
[1673648080466,21.02864221,18.374,18.35,109.4555]
[1673648080676,4.0597024,18.372,18.35,109.4555]
[1673648080882,21.0597024,18.372,18.35,109.4555]
[1673648081112,4.0925526,18.37,18.35,109.4555]
[1673648081319,21.0925526,18.37,18.35,109.4555]
[1673648081534,29.9691928,18.369,18.35,109.4555]
[1673648081728,41.0925526,18.368,18.35,109.4555]
[1673648082151,71.0617454,18.368,18.35,109.4555]
[1673648084048,29.9691928,18.367,18.35,109.4555]
[1673648084254,3.21710171,18.365,18.35,109.4555]
[1673648084669,5.23375117,18.363,18.346,118.8414]
[1673648084878,5.23375117,18.363,18.345,15.6414631]
[1673648084879,33.55,18.36,18.345,15.6414631]
[1673648085093,5.82342184,18.358,18.345,15.6414631]
[1673648085308,5.82342184,18.356,18.345,15.6414631]
[1673648085510,17.0,18.355,18.345,15.6414631]
[1673648086349,50.13584517,18.355,18.345,15.6414631]
[1673648086772,29.9691928,18.361,18.345,15.6414631]
[1673648086985,5.82342184,18.36,18.345,15.6414631]
[1673648087200,20.0,18.359,18.345,15.6414631]
[1673648087402,5.82342184,18.358,18.345,15.6414631]
[1673648087618,35.79261464,18.358,18.345,15.6414631]
[1673648087822,17.0,18.357,18.345,15.6414631]
[1673648088039,5.82342184,18.356,18.345,15.6414631]
[1673648088245,22.82342184,18.355,18.345,15.6414631]
[1673648088569,52.79261464,18.355,18.345,15.6414631]
[1673648088982,5.82342184,18.355,18.345,15.6414631]
[1673648089309,85.92845981,18.355,18.345,15.6414631]
[1673648089506,17.0,18.354,18.345,15.6414631]
[1673648089923,50.13584517,18.353,18.345,15.6414631]
[1673648090128,17.0,18.352,18.345,15.6414631]
[1673648091194,44.42728095,18.355,18.345,15.6414631]
[1673648091594,94.56312612,18.355,18.345,15.6414631]
[1673648091810,50.13584517,18.355,18.345,15.6414631]
[1673648093624,66.45528095,18.359,18.345,15.6414631]
[1673648094022,96.42447375,18.359,18.345,15.6414631]
[1673648094867,17.0,18.358,18.345,15.6414631]
[1673648095406,66.53194762,18.358,18.345,15.6414631]
[1673648096237,66.53194762,18.358,18.349,54.3326759]
[1673648096656,117.49668604,18.358,18.349,54.3326759]
[1673648097703,3.03916453,18.357,18.349,54.3326759]
[1673648098246,100.49668604,18.356,18.349,54.3326759]
[1673648098442,17.0,18.355,18.349,54.3326759]
[1673648099483,49.53194762,18.356,18.349,54.3326759]
[1673648100749,49.53194762,18.356,18.345,516.42865357]
[1673648102335,80.93393122,18.355,18.345,516.42865357]
[1673648102526,50.96473842,18.355,18.345,516.42865357]
[1673648103276,49.53194762,18.356,18.345,516.42865357]
[1673648104425,79.50114042,18.356,18.345,516.42865357]
[1673648104850,17.0,18.355,18.345,516.42865357]
[1673648105380,79.50114042,18.356,18.345,516.42865357]
[1673648105715,49.53194762,18.356,18.345,516.42865357]
[1673648108422,49.53194762,18.356,18.345,516.02865357]
[1673648109155,50.96473842,18.355,18.345,516.02865357]
[1673648109387,20.0,18.359,18.345,516.02865357]
[1673648109813,50.96473842,18.358,18.345,516.02865357]
[1673648111899,20.0,18.36,18.345,516.02865357]
[1673648112109,50.96473842,18.36,18.345,516.02865357]
[1673648112434,20.0,18.359,18.345,516.02865357]
[1673648112961,20.0,18.365,18.345,516.02865357]
[1673648113152,17.0,18.364,18.345,516.02865357]
[1673648113359,20.0,18.363,18.345,516.02865357]
[1673648113590,23.29021,18.362,18.345,516.02865357]
[1673648113784,20.0,18.361,18.345,516.02865357]
[1673648114962,29.9691928,18.36,18.345,516.02865357]
[1673648115150,20.0,18.359,18.345,516.02865357]
[1673648116201,29.9691928,18.36,18.345,516.02865357]
[1673648116411,29.9691928,18.358,18.345,516.02865357]
[1673648116622,20.0,18.359,18.345,516.02865357]
[1673648117465,97.93444426,18.359,18.345,516.02865357]
[1673648117673,17.0,18.358,18.345,516.02865357]
[1673648117883,97.93444426,18.359,18.345,516.02865357]
[1673648118093,29.9691928,18.357,18.345,516.02865357]
[1673648119583,20.0,18.359,18.345,516.02865357]
[1673648120107,20.0,18.362,18.345,516.02865357]
[1673648120325,20.0,18.363,18.345,516.02865357]
[1673648120508,29.9691928,18.362,18.345,516.02865357]
[1673648120851,20.0,18.361,18.345,516.02865357]
[1673648121255,29.9691928,18.36,18.345,516.02865357]
[1673648121457,20.0,18.359,18.345,516.02865357]
[1673648121898,47.96525146,18.361,18.345,516.02865357]
[1673648122113,43.09806837,18.369,18.346,20.0]
[1673648122331,29.9691928,18.367,18.346,20.0]
[1673648122960,24.9691928,18.367,18.346,20.0]
[1673648123998,47.96525146,18.368,18.346,20.0]
[1673648124324,47.96525146,18.366,18.345,516.02865357]
[1673648124648,37.71,18.36,18.345,516.02865357]
[1673648124958,20.0,18.359,18.345,516.02865357]
[1673648125881,29.9691928,18.358,18.345,516.02865357]
[1673648126320,17.0,18.357,18.345,516.02865357]
[1673648126732,49.9691928,18.356,18.345,516.02865357]
[1673648127989,17.0,18.355,18.345,516.02865357]
[1673648128201,20.0,18.354,18.345,516.02865357]
[1673648129055,17.0,18.353,18.345,516.02865357]
[1673648129355,49.9691928,18.352,18.345,516.02865357]
[1673648129585,18.4,18.351,18.345,516.02865357]
[1673648129893,1.4,18.349,18.345,516.02865357]
[1673648130216,20.0,18.35,18.345,516.02865357]
[1673648130409,20.0,18.351,18.345,516.02865357]
[1673648130944,37.81,18.35,18.345,516.02865357]
[1673648131365,20.0,18.349,18.345,516.02865357]
[1673648132624,49.9691928,18.349,18.345,516.02865357]
[1673648132838,17.0,18.348,18.345,516.02865357]
[1673648133264,47.96525146,18.347,18.345,516.02865357]
[1673648133663,20.0,18.349,18.345,516.02865357]
[1673648135150,47.89591813,18.348,18.345,516.02865357]
[1673648135338,77.86511093,18.348,18.345,516.02865357]
[1673648135553,29.9691928,18.347,18.345,516.02865357]
[1673648135772,47.89591813,18.347,18.345,516.02865357]
[1673648135974,47.89591813,18.346,18.345,516.02865357]
[1673648136616,77.86511093,18.346,18.345,516.02865357]
[1673648136814,47.89591813,18.346,18.345,516.02865357]
[1673648137563,20.0,18.349,18.345,516.02865357]
[1673648138074,49.9691928,18.349,18.345,516.02865357]
[1673648138395,91.5139865,18.348,18.345,516.02865357]
[1673648138818,56.2594028,18.349,18.345,516.02865357]
[1673648138819,121.4831793,18.347,18.345,516.02865357]
[1673648139034,77.86511093,18.347,18.345,516.02865357]
[1673648139354,94.86511093,18.346,18.345,516.02865357]
[1673648139993,138.4831793,18.346,18.345,516.02865357]
[1673648140707,121.4831793,18.346,18.345,516.02865357]
[1673648140923,77.86511093,18.346,18.345,516.02865357]
[1673648141554,201.45873675,18.346,18.345,453.22367705]
[1673648141974,204.42615083,18.346,18.345,453.22367705]
[1673648142180,221.42615083,18.346,18.345,453.22367705]
[1673648142385,201.45873675,18.346,18.345,453.22367705]
[1673648143225,201.45873675,18.346,18.345,442.22367705]
[1673648143869,303.67467782,18.346,18.345,442.22367705]
[1673648144094,307.22007268,18.346,18.345,442.22367705]
[1673648144397,307.22007268,18.346,18.345,229.87218023]
[1673648144593,168.10977423,18.346,18.345,229.87218023]
[1673648144807,186.23557084,18.346,18.345,229.87218023]
[1673648145339,222.47413491,18.346,18.345,222.17316284]
[1673648145536,225.42744394,18.346,18.345,222.17316284]
[1673648145741,222.47413491,18.346,18.345,222.17316284]
[1673648145968,222.47413491,18.346,18.345,185.50193349]
[1673648146404,239.47413491,18.346,18.345,185.50193349]
[1673648147439,242.60307999,18.346,18.345,185.50193349]
[1673648147654,225.60307999,18.346,18.345,185.50193349]
[1673648147882,225.60307999,18.346,18.345,174.50193349]
[1673648148280,222.47413491,18.346,18.345,174.50193349]
[1673648148901,222.47413491,18.346,18.345,114.38193349]
[1673648149110,102.06996659,18.344,18.335,54.7440304]
[1673648149329,6.29021,18.343,18.335,54.7440304]
[1673648149542,175.36707985,18.343,18.335,54.7440304]
[1673648149737,189.07686985,18.342,18.335,54.7440304]
[1673648149941,23.29021,18.341,18.335,54.7440304]
[1673648150155,26.29021,18.34,18.335,54.7440304]
[1673648150394,23.29021,18.339,18.335,54.7440304]
[1673648150593,6.29021,18.338,18.335,54.7440304]
[1673648150789,37.0,18.337,18.335,54.7440304]
[1673648151011,6.29021,18.336,18.335,54.7440304]
[1673648151205,133.67365406,18.336,18.335,54.7440304]
[1673648151548,212.36707985,18.336,18.335,54.7440304]
[1673648151767,212.36707985,18.336,18.335,18.7440304]
[1673648152061,200.22254108,18.335,18.318,30.9823292]
[1673648152276,6.29021,18.334,18.318,30.9823292]
[1673648152490,34.2190304,18.331,18.318,30.9823292]
[1673648152680,6.29021,18.33,18.318,30.9823292]
[1673648152899,168.42481656,18.33,18.318,30.9823292]
[1673648153100,29.9691928,18.329,18.318,30.9823292]
[1673648153329,26.29021,18.328,18.318,30.9823292]
[1673648153541,174.18510507,18.328,18.318,30.9823292]
[1673648153734,177.86408787,18.327,18.318,30.9823292]
[1673648153945,37.0,18.326,18.318,30.9823292]
[1673648154172,184.89489507,18.326,18.318,30.9823292]
[1673648154357,11.0,18.322,18.318,30.9823292]
[1673648154576,26.29021,18.321,18.318,30.9823292]
[1673648154789,10.49940456,18.32,18.318,20.9823292]
[1673648155012,26.29021,18.319,18.318,20.9823292]
[1673648155202,148.07066407,18.319,18.318,20.9823292]
[1673648155536,197.69636273,18.319,18.318,20.9823292]
[1673648156359,41.9646584,18.318,18.308,54.7440304]
[1673648156572,17.0,18.317,18.308,54.7440304]
[1673648156794,191.76120299,18.317,18.308,54.7440304]
[1673648156997,94.19124442,18.316,18.308,54.7440304]
[1673648157194,134.98312389,18.316,18.308,54.7440304]
[1673648157409,20.0,18.319,18.308,54.7440304]
[1673648157622,29.9691928,18.315,18.308,54.7440304]
[1673648157834,20.0,18.314,18.308,54.7440304]
[1673648158042,104.68642113,18.314,18.308,54.7440304]
[1673648158275,75.55136377,18.313,18.308,54.7440304]
[1673648158580,142.78377231,18.312,18.308,54.7440304]
[1673648158791,17.0,18.311,18.308,54.7440304]
[1673648159017,160.3397797,18.311,18.308,54.7440304]
[1673648159329,37.91,18.32,18.308,54.7440304]
[1673648159508,29.9691928,18.317,18.308,54.7440304]
[1673648159946,44.31084392,18.316,18.308,54.7440304]
[1673648160364,29.9691928,18.315,18.308,54.7440304]
[1673648160578,83.99074303,18.316,18.308,54.7440304]
[1673648161206,29.9691928,18.315,18.308,54.7440304]
[1673648161417,44.31084392,18.315,18.308,54.7440304]
[1673648161740,39.67989911,18.316,18.308,54.7440304]
[1673648162057,37.57,18.33,18.308,54.7440304]
[1673648162243,20.0,18.329,18.309,115.6805]
[1673648163408,29.9691928,18.328,18.309,115.6805]
[1673648163732,20.0,18.327,18.309,115.6805]
[1673648163942,51.60986452,18.327,18.309,115.6805]
[1673648164164,31.60986452,18.326,18.309,115.6805]
[1673648164370,20.0,18.325,18.309,115.6805]
[1673648164674,29.9691928,18.325,18.309,115.6805]
[1673648164889,31.60986452,18.325,18.309,115.6805]
[1673648165423,29.9691928,18.324,18.309,115.6805]
[1673648165725,37.57,18.33,18.309,115.6805]
[1673648165916,29.9691928,18.326,18.309,115.6805]
[1673648166969,37.57,18.33,18.309,115.6805]
[1673648167189,17.0,18.329,18.31,114.4612]
[1673648167396,29.9691928,18.329,18.31,114.4612]
[1673648167625,37.57,18.33,18.31,114.4612]
[1673648167626,29.9691928,18.328,18.31,114.4612]
[1673648168966,61.69264574,18.328,18.31,114.4612]
[1673648169177,17.0,18.327,18.31,114.4612]
[1673648169402,75.09990338,18.327,18.31,114.4612]
[1673648169612,37.57,18.33,18.31,114.4612]
[1673648169821,20.0,18.329,18.31,114.4612]
[1673648170566,49.9691928,18.329,18.31,114.4612]
[1673648171183,20.0,18.329,18.31,114.4612]
[1673648173064,103.4651,18.36,18.311,20.0]
[1673648173273,20.0,18.345,18.311,20.0]
[1673648173612,40.62,18.34,18.311,20.0]
[1673648174533,40.54,18.33,18.31,114.4612]
[1673648174972,20.0,18.329,18.31,114.4612]
[1673648175283,40.54,18.33,18.31,114.4612]
[1673648177267,70.5091928,18.33,18.31,114.4612]
[1673648177603,86.28742717,18.329,18.31,114.4612]
[1673648177815,20.0,18.328,18.31,114.4612]
[1673648178002,97.12790338,18.328,18.31,114.4612]
[1673648178219,47.15871058,18.327,18.31,114.4612]
[1673648178443,119.63661997,18.327,18.31,114.4612]
[1673648178969,40.54,18.32,18.31,114.4612]
[1673648179159,3.03670799,18.319,18.309,115.6805]
[1673648179371,134.7328681,18.319,18.309,115.6805]
[1673648179604,134.7328681,18.319,18.301,4.1201303]
[1673648179809,47.15871058,18.318,18.301,4.1201303]
[1673648180331,45.54204993,18.319,18.301,4.1201303]
[1673648180536,40.43,18.33,18.301,4.1201303]
[1673648180750,77.12790338,18.325,18.302,111.6174]
[1673648181070,122.66995331,18.325,18.302,111.6174]
[1673648181274,77.12790338,18.324,18.302,111.6174]
[1673648181491,47.15871058,18.324,18.302,111.6174]
[1673648181714,40.62,18.32,18.302,280.5174]
[1673648181927,20.0,18.319,18.302,280.5174]
[1673648182129,40.62,18.32,18.302,280.5174]
[1673648182659,84.7636753,18.323,18.302,280.5174]
[1673648182852,84.7636753,18.323,18.303,20.0]
[1673648183065,49.93204392,18.322,18.303,20.0]
[1673648183922,40.54,18.33,18.303,20.0]
[1673648183923,40.54,18.33,18.303,188.9]
[1673648184128,40.62,18.34,18.304,6.30379]
[1673648184336,29.9691928,18.335,18.305,20.0]
[1673648184532,29.9691928,18.335,18.305,26.30344]
[1673648184746,29.9691928,18.335,18.305,6.30344]
[1673648185173,29.9691928,18.335,18.306,20.0]
[1673648185601,29.9691928,18.335,18.307,6.30275]
[1673648185901,29.9691928,18.335,18.311,168.9]
[1673648186113,40.62,18.34,18.313,168.9]
[1673648186328,29.9691928,18.339,18.314,20.0]
[1673648186557,40.62,18.34,18.314,26.30035]
[1673648187285,49.9691928,18.339,18.314,26.30035]
[1673648187600,29.9691928,18.338,18.314,20.0]
[1673648187798,29.9691928,18.338,18.313,20.0]
[1673648190759,20.0,18.339,18.313,20.0]
[1673648193709,40.59,18.34,18.313,20.0]
[1673648193919,42.9690633,18.35,18.32,209.49]
[1673648194117,29.9691928,18.347,18.32,160.1648]
[1673648194328,29.9691928,18.347,18.321,20.0]
[1673648194754,29.9691928,18.347,18.322,114.5045]
[1673648194958,29.9691928,18.347,18.323,20.0]
[1673648196007,42.9690633,18.35,18.323,20.0]
[1673648196216,20.0,18.349,18.323,20.0]
[1673648197380,40.59,18.34,18.322,114.5045]
[1673648197575,20.0,18.339,18.322,114.5045]
[1673648198218,20.0,18.339,18.322,283.4045]
[1673648198760,40.59,18.34,18.322,283.4045]
[1673648198951,42.9690633,18.35,18.322,283.4045]
[1673648199157,20.0,18.349,18.322,283.4045]
[1673648199369,31.9691928,18.342,18.322,114.5045]
[1673648199807,2.0,18.342,18.323,20.0]
[1673648200318,40.59,18.34,18.323,20.0]
[1673648200739,2.0,18.342,18.323,20.0]
[1673648201592,40.34,18.34,18.323,20.0]
[1673648201810,29.9691928,18.341,18.323,20.0]
[1673648202004,29.9691928,18.34,18.323,20.0]
[1673648202623,2.0,18.342,18.323,20.0]
[1673648203481,40.59,18.34,18.322,114.5045]
[1673648203691,20.0,18.339,18.322,114.5045]
[1673648203910,40.34,18.33,18.31,110.9169]
[1673648204119,4.97630392,18.329,18.311,116.2426]
[1673648204325,24.97630392,18.329,18.311,116.2426]
[1673648204554,4.97630392,18.327,18.311,116.2426]
[1673648204972,20.0,18.329,18.311,116.2426]
[1673648204973,4.97630392,18.325,18.311,116.2426]
[1673648205606,34.94549672,18.325,18.311,116.2426]
[1673648206854,50.0,18.312,18.311,116.2426]
[1673648207064,50.0,18.312,18.301,4.1201303]
[1673648207707,50.0,18.312,18.301,24.1201303]
[1673648209581,50.0,18.312,18.301,4.1201303]
[1673648211261,7.5535,18.312,18.301,4.1201303]
[1673648211470,2.0,18.314,18.301,4.1201303]
[1673648211715,2.0,18.314,18.302,26.96408261]
[1673648211910,2.0,18.314,18.303,168.9]
[1673648212121,40.59,18.33,18.303,288.0185]
[1673648212323,40.59,18.33,18.305,168.9]
[1673648212646,40.59,18.33,18.306,26.3031]
[1673648212864,40.59,18.33,18.306,20.0]
[1673648213803,70.5591928,18.33,18.306,20.0]
[1673648214114,70.5591928,18.33,18.304,26.96408261]
[1673648214331,70.5591928,18.33,18.304,195.86408261]
[1673648214856,20.0,18.329,18.303,119.1185]
[1673648215162,29.9691928,18.328,18.303,119.1185]
[1673648215366,2.96248389,18.327,18.303,119.1185]
[1673648215593,29.9691928,18.328,18.303,119.1185]
[1673648215807,3.05659345,18.325,18.303,119.1185]
[1673648216027,29.9691928,18.326,18.303,119.1185]
[1673648216226,29.9691928,18.325,18.303,119.1185]
[1673648216638,64.17736184,18.329,18.303,288.0185]
[1673648216856,64.17736184,18.329,18.304,20.0]
[1673648217075,20.0,18.329,18.304,215.09274913]
[1673648217283,20.0,18.329,18.305,26.19274913]
[1673648217489,20.0,18.329,18.306,20.0]
[1673648217921,20.0,18.329,18.307,168.9]
[1673648218335,20.0,18.329,18.306,46.19274913]
[1673648218547,20.0,18.329,18.306,20.0]
[1673648218760,49.9691928,18.329,18.305,20.0]
[1673648218972,49.9691928,18.329,18.304,20.0]
[1673648219372,40.34,18.32,18.303,119.1185]
[1673648219604,20.0,18.319,18.303,119.1185]
[1673648220548,40.59,18.33,18.303,288.0185]
[1673648220759,40.59,18.33,18.303,320.51537913]
[1673648221169,40.59,18.33,18.304,6.30379]
[1673648221378,40.59,18.33,18.305,20.0]
[1673648221588,40.59,18.33,18.306,168.9]
[1673648221810,40.59,18.33,18.307,20.0]
[1673648223076,40.59,18.33,18.308,168.9]
[1673648223285,40.59,18.33,18.309,20.0]
[1673648223493,40.59,18.34,18.311,168.9]
[1673648223819,40.59,18.34,18.31,122.25542]
[1673648223820,20.0,18.339,18.313,168.9]
[1673648224126,20.0,18.339,18.314,20.0]
[1673648224967,20.0,18.339,18.315,42.98787214]
[1673648225177,20.0,18.339,18.316,20.0]
[1673648225383,29.9691928,18.338,18.316,20.0]
[1673648225704,29.9691928,18.338,18.315,20.0]
[1673648226315,48.40692474,18.337,18.313,20.0]
[1673648226528,145.09337234,18.337,18.313,20.0]
[1673648226735,129.66297374,18.336,18.314,20.0]
[1673648226946,181.54523181,18.336,18.313,20.0]
[1673648227156,29.9691928,18.335,18.313,20.0]
[1673648227396,81.85145087,18.335,18.313,20.0]
[1673648227790,29.9691928,18.334,18.313,20.0]
[1673648227997,81.85145087,18.334,18.312,111.5276]
[1673648228219,76.34821132,18.333,18.312,111.5276]
[1673648228758,138.19966219,18.332,18.313,168.9]
[1673648228964,108.23046939,18.332,18.313,168.9]
[1673648229161,39.87890295,18.336,18.313,168.9]
[1673648229583,51.88225807,18.337,18.314,20.0]
[1673648229791,51.88225807,18.336,18.314,20.0]
[1673648230419,103.72380272,18.336,18.314,20.0]
[1673648231281,51.84154465,18.336,18.315,168.9]
[1673648231475,158.5242633,18.35,18.316,20.0]
[1673648231684,47.76821132,18.347,18.317,175.19931]
[1673648232010,47.76821132,18.347,18.318,20.0]
[1673648232221,47.76821132,18.347,18.318,26.29897]
[1673648233158,47.76821132,18.347,18.321,168.9]
[1673648233369,42.9690633,18.35,18.323,168.9]
[1673648233603,20.0,18.349,18.324,20.0]
[1673648233810,16.23667706,18.347,18.324,26.29691]
[1673648234028,16.23667706,18.347,18.324,20.0]
[1673648234268,16.23667706,18.347,18.323,188.9]
[1673648234472,31.53153426,18.348,18.323,195.19725]
[1673648234777,61.50072706,18.348,18.323,195.19725]
[1673648234971,61.50072706,18.348,18.323,26.29725]
[1673648235912,42.9690633,18.35,18.323,26.29725]
[1673648236122,42.9690633,18.35,18.323,46.19274913]
[1673648236335,42.9690633,18.35,18.324,175.19691]
[1673648236547,42.9690633,18.35,18.325,26.29656]
[1673648236880,2.3790633,18.35,18.326,201.38896913]
[1673648237202,2.3790633,18.35,18.331,168.9]
[1673648237391,2.3790633,18.35,18.332,26.29416]
[1673648237592,2.3790633,18.35,18.333,175.19382]
[1673648237804,2.3790633,18.35,18.334,133.516]
[1673648238017,2.3790633,18.35,18.335,6.29313]
[1673648238244,2.3790633,18.35,18.336,20.0]
[1673648238451,2.3790633,18.35,18.336,52.48553913]
[1673648238770,2.3790633,18.35,18.334,133.516]
[1673648239710,2.3790633,18.35,18.335,168.9]
[1673648239900,2.3790633,18.35,18.336,20.0]
[1673648241273,2.3790633,18.35,18.336,46.19274913]
[1673648241498,2.3790633,18.35,18.336,188.9]
[1673648242021,17.8063616,18.355,18.34,40.42]
[1673648242238,17.8063616,18.355,18.341,195.19107]
[1673648242448,17.8063616,18.355,18.342,6.29073]
[1673648242638,17.8063616,18.355,18.343,20.0]
[1673648244020,17.8063616,18.355,18.344,26.19274913]
[1673648244229,17.8063616,18.355,18.345,20.0]
[1673648245272,17.8063616,18.355,18.339,20.0]
[1673648245701,17.8063616,18.355,18.341,168.9]
[1673648245924,17.8063616,18.355,18.342,20.0]
[1673648246428,17.8063616,18.355,18.341,168.9]
[1673648246640,17.8063616,18.355,18.342,26.29073]
[1673648247902,17.8063616,18.355,18.343,6.29038]
[1673648248436,17.8063616,18.355,18.344,188.9]
[1673648249591,17.8063616,18.355,18.344,20.0]
[1673648250212,17.8063616,18.355,18.341,20.0]
[1673648250548,17.8063616,18.355,18.34,286.7996]
[1673648250734,17.8063616,18.355,18.34,117.8996]
[1673648251584,17.8063616,18.355,18.34,286.7996]
[1673648251796,17.8063616,18.355,18.34,327.2196]
[1673648252210,17.8063616,18.355,18.34,286.7996]
[1673648252634,17.8063616,18.355,18.34,117.8996]
[1673648253170,17.8063616,18.355,18.34,327.3896]
[1673648253368,17.8063616,18.355,18.34,353.58234913]
[1673648253905,17.8063616,18.355,18.341,26.29107]
[1673648254315,17.8063616,18.355,18.341,221.38381913]
[1673648255574,14.8567616,18.355,18.341,221.38381913]
[1673648255906,14.8567616,18.355,18.343,168.9]
[1673648256122,14.8567616,18.355,18.344,26.29004]
[1673648256305,14.8567616,18.355,18.345,175.1897]
[1673648256514,17.9831851,18.377,18.346,26.28936]
[1673648256742,17.9831851,18.377,18.347,175.18901]
[1673648256935,17.9831851,18.377,18.35,209.49]
[1673648257146,17.9831851,18.377,18.351,20.0]
[1673648257367,17.9831851,18.377,18.352,6.2873]
[1673648257579,17.9831851,18.377,18.352,175.1873]
[1673648257795,17.9831851,18.377,18.353,20.0]
[1673648258113,40.59,18.37,18.353,20.0]
[1673648258323,40.59,18.37,18.35,20.0]
[1673648258510,40.59,18.37,18.35,188.9]
[1673648259354,40.59,18.37,18.35,254.51514881]
[1673648259571,40.59,18.37,18.35,43.06613813]
[1673648259898,20.0,18.369,18.347,195.09274913]
[1673648260205,40.59,18.37,18.346,110.9242]
[1673648260416,40.59,18.37,18.346,117.21356]
[1673648260627,40.59,18.37,18.346,110.9242]
[1673648261160,40.59,18.37,18.346,279.8242]
[1673648261679,40.59,18.37,18.348,168.9]
[1673648261895,17.9831851,18.377,18.35,40.59]
[1673648262309,17.9831851,18.377,18.351,20.0]
[1673648262515,17.9831851,18.377,18.35,40.59]
[1673648262516,40.59,18.37,18.35,40.59]
[1673648262831,40.59,18.37,18.349,6.28833]
[1673648263022,40.59,18.37,18.346,110.9242]
[1673648263023,20.0,18.369,18.346,110.9242]
[1673648264835,20.0,18.369,18.347,168.9]
[1673648265352,20.0,18.369,18.348,198.8691928]
[1673648265551,40.59,18.37,18.348,198.8691928]
[1673648265767,40.59,18.37,18.35,168.9]
[1673648265984,40.59,18.37,18.351,20.0]
[1673648266307,40.59,18.37,18.351,49.9691928]
[1673648266500,40.59,18.37,18.351,168.9]
[1673648266716,20.0,18.369,18.351,168.9]
[1673648266915,20.0,18.369,18.35,146.6968928]
[1673648267258,20.0,18.369,18.35,116.7277]
[1673648267448,40.59,18.37,18.35,116.7277]
[1673648267782,40.59,18.37,18.351,168.9]
[1673648268007,40.59,18.37,18.351,29.9691928]
[1673648268187,40.59,18.37,18.35,116.7277]
[1673648268728,20.0,18.369,18.35,116.7277]
[1673648268938,20.0,18.369,18.346,110.9242]
[1673648269335,20.0,18.369,18.347,20.0]
[1673648269773,40.59,18.37,18.347,20.0]
[1673648270094,57.37520765,18.377,18.348,29.9691928]
[1673648270291,40.59,18.37,18.349,20.0]
[1673648270504,40.59,18.37,18.349,188.9]
[1673648270818,40.59,18.37,18.351,168.9]
[1673648271022,40.59,18.37,18.352,20.0]
[1673648271233,40.59,18.37,18.352,49.9691928]
[1673648271801,40.59,18.37,18.353,29.9691928]
[1673648271972,40.59,18.37,18.354,20.0]
[1673648272383,17.9831851,18.377,18.355,29.9691928]
[1673648272598,17.9831851,18.377,18.356,20.0]
[1673648272807,17.9831851,18.377,18.354,20.0]
[1673648273327,17.9831851,18.377,18.353,20.0]
[1673648273328,40.34,18.37,18.353,20.0]
[1673648273547,40.34,18.37,18.351,20.0]
[1673648273754,20.0,18.369,18.35,109.299]
[1673648274927,20.0,18.369,18.35,278.199]
[1673648275121,40.34,18.37,18.352,168.9]
[1673648275337,40.34,18.37,18.351,29.9691928]
[1673648275554,40.34,18.37,18.35,109.299]
[1673648276479,40.34,18.37,18.35,278.199]
[1673648276696,40.34,18.37,18.351,6.28764]
[1673648276904,17.9831851,18.377,18.351,6.28764]
[1673648277116,17.9831851,18.377,18.353,168.9]
[1673648277316,17.9831851,18.377,18.354,26.28661]
[1673648277533,17.9831851,18.377,18.354,49.9691928]
[1673648277848,17.9831851,18.377,18.355,29.9691928]
[1673648278071,17.9831851,18.377,18.356,20.0]
[1673648278263,40.59,18.37,18.354,20.0]
[1673648278803,40.59,18.37,18.355,29.9691928]